[Event "Najdorf Memorial-A 2022"]
[Site "Warsaw"]
[Date "2022.07.12"]
[Round "4.19"]
[White "Ratajczak, Hubert"]
[Black "Gasiorek, Dariusz"]
[Result "1-0"]
[ECO "A13"]
[WhiteElo "1943"]
[BlackElo "1854"]
[Annotator "ChessBase"]
[PlyCount "67"]
[EventDate "2022.07.09"]
[EventType "swiss"]
[EventCountry "POL"]
[SourceTitle "playchess.com"]
[Source "ChessBase"]
[SourceQuality "1"]
[TimeControl "40/5400+30:1800+30"]

1. c4 {[%emt 0:00:02]} e6 {[%emt 0:00:20]} 2. Nf3 {[%emt 0:00:20]} d5 {[%emt 0:00:20]} 3. e3 {[%emt 0:00:41]} Nf6 {[%emt 0:00:53]} 4. Nc3 {[%emt 0:00:34]} Be7 {[%emt 0:03:49]} 5. d4 {[%emt 0:01:45]} O-O {[%emt 0:02:44]} 6. Qc2 {[%emt 0:06:17]} b6 {[%emt 0:12:07]} 7. cxd5 {[%emt 0:02:31]} exd5 {[%emt 0:03:16]} 8. Bd3 {[%emt 0:03:27]} c5 {[%emt 0:04:22]} 9. Ne5 {[%emt 0:08:31]} h6 {[%emt 0:27:14]} 10. O-O {[%emt 0:02:18]} Bb7 {[%emt 0:03:37]} 11. Bd2 {[%emt 0:18:47]} Nc6 {[%emt 0:02:02]} 12. Ne2 {[%emt 0:00:07]} Nxe5 {[%emt 0:05:48]} 13. dxe5 {[%emt 0:00:27]} Ne4 {[%emt 0:02:17]} 14. f4 {[%emt 0:11:19]} f6 {[%emt 0:04:26]} 15. Bxe4 {[%emt 0:08:21]} dxe4 {[%emt 0:00:20]} 16. Bc3 {[%emt 0:03:12]} Ba6 {[%emt 0:04:50]} 17. Rfd1 {[%emt 0:05:25]} Bd3 {[%emt 0:01:51]} 18. Qb3+ {[%emt 0:00:25]} Kh8 {[%emt 0:03:32]} 19. Qe6 {[%emt 0:01:40]} fxe5 {[%emt 0:02:49]} 20. Nc1 {[%emt 0:01:45]} Bf6 {[%emt 0:06:32]} 21. Nxd3 {[%emt 0:02:50]} exd3 {[%emt 0:00:43]} 22. fxe5 {[%emt 0:03:48]} Bg5 {[%emt 0:01:02]} 23. Qc4 {[%emt 0:00:23]} Bxe3+ {[%emt 0:00:49]} 24. Kh1 {[%emt 0:00:01]} Qg5 {[%emt 0:04:01]} 25. Qxd3 {[%emt 0:02:57]} Rf2 {[%emt 0:01:23]} 26. Qe4 {[%emt 0:00:02]} Raf8 {[%emt 0:00:31]} 27. e6 {[%emt 0:01:53]} R8f4 {[%emt 0:01:36]} 28. Bxg7+ {[%emt 0:02:09]} Qxg7 {[%emt 0:00:35]} 29. Rd8+ {[%emt 0:00:05]} Rf8 30. e7 {[%emt 0:00:19]} Qxe7 {[%emt 0:01:10]} 31. Qxe7 {[%emt 0:00:10]} Rxd8 {[%emt 0:00:25]} 32. Qxd8+ {[%emt 0:00:07]} Kg7 {[%emt 0:00:08]} 33. Qe7+ {[%emt 0:00:17]} Rf7 34. Qxe3 {[%emt 0:00:05]} 1-0

[Event "Najdorf Memorial-A 2022"]
[Site "Warsaw"]
[Date "2022.07.13"]
[Round "5.1"]
[White "Pacan-Milej, Kosma"]
[Black "Jarmula, Lukasz"]
[Result "1/2-1/2"]
[ECO "B06"]
[WhiteElo "2412"]
[BlackElo "2452"]
[Annotator "ChessBase"]
[PlyCount "42"]
[EventDate "2022.07.09"]
[EventType "swiss"]
[EventCountry "POL"]
[SourceTitle "playchess.com"]
[Source "ChessBase"]
[SourceQuality "1"]
[TimeControl "40/5400+30:1800+30"]

1. d4 {[%emt 0:00:04]} d6 {[%emt 0:00:21]} 2. Nf3 {[%emt 0:06:22]} g6 {[%emt 0:00:46]} 3. c4 {[%emt 0:01:41]} Bg7 {[%emt 0:00:08]} 4. e4 {[%emt 0:08:36]} Bg4 {[%emt 0:00:35]} 5. Be2 {[%emt 0:01:05]} Bxf3 {[%emt 0:00:19]} 6. Bxf3 {[%emt 0:00:04]} Nc6 {[%emt 0:00:10]} 7. Be3 {[%emt 0:01:36]} e5 {[%emt 0:00:14]} 8. d5 {[%emt 0:00:13]} Nd4 {[%emt 0:00:06]} 9. O-O {[%emt 0:03:08]} c5 {[%emt 0:03:16]} 10. dxc6 {[%emt 0:01:25]} bxc6 {[%emt 0:00:36]} 11. Bxd4 {[%emt 0:21:41]} exd4 {[%emt 0:00:37]} 12. e5 {[%emt 0:01:04]} Ne7 {[%emt 0:00:31]} 13. exd6 {[%emt 0:01:14]} Qxd6 {[%emt 0:00:09]} 14. Qd3 {[%emt 0:01:18]} Rb8 {[%emt 0:03:13]} 15. b3 {[%emt 0:00:53]} O-O {[%emt 0:00:48]} 16. Nc3 {[%emt 0:00:48]} Qc7 {[%emt 0:04:40]} 17. Na4 {[%emt 0:02:31]} c5 {[%emt 0:02:55]} 18. Rfe1 {[%emt 0:01:07]} Nc8 {[%emt 0:05:58]} 19. Re2 {[%emt 0:02:33]} Nb6 {[%emt 0:01:57]} 20. Nxb6 {[%emt 0:04:57]} axb6 {[%emt 0:00:35]} 21. Rae1 {[%emt 0:01:10]} Bf6 {[%emt 0:00:10]} 1/2-1/2

[Event "Najdorf Memorial-A 2022"]
[Site "Warsaw"]
[Date "2022.07.13"]
[Round "5.1"]
[White "Goraj, Barbara"]
[Black "Zalega, Maciej"]
[Result "1/2-1/2"]
[ECO "B44"]
[WhiteElo "2035"]
[BlackElo "1912"]
[Annotator "ChessBase"]
[PlyCount "78"]
[EventDate "2022.07.09"]
[EventType "swiss"]
[EventCountry "POL"]
[SourceTitle "playchess.com"]
[Source "ChessBase"]
[SourceQuality "1"]
[TimeControl "40/5400+30:1800+30"]

1. e4 {[%emt 0:00:03]} c5 {[%emt 0:00:57]} 2. Nf3 {[%emt 0:00:04]} e6 {[%emt 0:00:04]} 3. d4 {[%emt 0:00:20]} cxd4 {[%emt 0:00:03]} 4. Nxd4 {[%emt 0:00:11]} Nc6 {[%emt 0:00:01]} 5. Nb5 {[%emt 0:00:59]} d6 {[%emt 0:00:29]} 6. c4 {[%emt 0:00:09]} Nf6 {[%emt 0:00:36]} 7. N1c3 {[%emt 0:00:08]} a6 {[%emt 0:00:44]} 8. Na3 {[%emt 0:00:09]} Qa5 {[%emt 0:02:09]} 9. Bd2 {[%emt 0:11:03]} Be7 {[%emt 0:00:18]} 10. Nc2 {[%emt 0:07:16]} Qd8 {[%emt 0:08:23]} 11. Be3 {[%emt 0:06:31]} Qa5 {[%emt 0:19:40]} 12. f3 {[%emt 0:08:01]} O-O {[%emt 0:03:02]} 13. Qd2 {[%emt 0:03:55]} Bd7 {[%emt 0:04:25]} 14. Qf2 {[%emt 0:08:16]} Nb4 {[%emt 0:18:29]} 15. Nd4 {[%emt 0:11:15]} Qc7 {[%emt 0:15:58]} 16. Rc1 {[%emt 0:04:12]} Nc6 {[%emt 0:02:38]} 17. Nb3 {[%emt 0:03:47]} Ne5 {[%emt 0:04:56]} 18. Bb6 {[%emt 0:03:57]} Qc8 {[%emt 0:00:54]} 19. Qd4 {[%emt 0:05:36]} Nh5 {[%emt 0:04:06]} 20. c5 {[%emt 0:05:49]} Nc6 {[%emt 0:04:54]} 21. Qd2 {[%emt 0:01:53]} dxc5 {[%emt 0:04:08]} 22. Nxc5 {[%emt 0:01:29]} Ne5 {[%emt 0:01:46]} 23. Qe3 {[%emt 0:04:50]} h6 {[%emt 0:02:20]} 24. Rc2 {[%emt 0:11:20]} Bg5 {[%emt 0:00:37]} 25. Qd4 {[%emt 0:00:49]} Bh4+ {[%emt 0:00:16]} 26. Kd1 {[%emt 0:00:11]} Bf6 {[%emt 0:00:03]} 27. Qd6 {[%emt 0:00:54]} Qc6 {[%emt 0:01:01]} 28. Qxc6 {[%emt 0:00:18]} Bxc6 {[%emt 0:00:13]} 29. Ne2 {[%emt 0:00:08]} Bd8 {[%emt 0:00:20]} 30. Bxd8 {[%emt 0:01:04]} Rfxd8+ {[%emt 0:00:03]} 31. Kc1 {[%emt 0:00:38]} b6 {[%emt 0:00:35]} 32. Nb3 {[%emt 0:00:42]} Ba4 {[%emt 0:01:37]} 33. Nc3 {[%emt 0:00:28]} Bxb3 {[%emt 0:00:29]} 34. axb3 {[%emt 0:00:02]} Nf4 {[%emt 0:00:32]} 35. g3 {[%emt 0:00:30]} Nfd3+ {[%emt 0:00:10]} 36. Bxd3 {[%emt 0:00:35]} Nxd3+ {[%emt 0:00:02]} 37. Kb1 {[%emt 0:00:08]} Nb4 {[%emt 0:00:06]} 38. Rcc1 {[%emt 0:01:03]} Rd2 {[%emt 0:00:39]} 39. Na2 {[%emt 0:00:45]} Nxa2 {[%emt 0:01:11]} 1/2-1/2

[Event "Najdorf Memorial-A 2022"]
[Site "Warsaw"]
[Date "2022.07.13"]
[Round "5.2"]
[White "Noe, Christopher"]
[Black "Romanishin, Oleg M"]
[Result "1/2-1/2"]
[ECO "E25"]
[WhiteElo "2505"]
[BlackElo "2404"]
[Annotator "ChessBase"]
[PlyCount "63"]
[EventDate "2022.07.09"]
[EventType "swiss"]
[EventCountry "POL"]
[SourceTitle "playchess.com"]
[Source "ChessBase"]
[SourceQuality "1"]
[TimeControl "40/5400+30:1800+30"]

1. d4 {[%emt 0:00:05]} Nf6 {[%emt 0:00:24]} 2. c4 {[%emt 0:00:08]} e6 {[%emt 0:00:32]} 3. Nc3 {[%emt 0:01:01]} Bb4 {[%emt 0:00:06]} 4. f3 {[%emt 0:01:18]} d5 {[%emt 0:01:39]} 5. a3 {[%emt 0:00:14]} Bxc3+ {[%emt 0:00:08]} 6. bxc3 {[%emt 0:00:06]} c5 {[%emt 0:00:27]} 7. cxd5 {[%emt 0:00:15]} Nxd5 {[%emt 0:00:10]} 8. dxc5 {[%emt 0:00:55]} f5 {[%emt 0:00:17]} 9. Nh3 {[%emt 0:24:54]} Qa5 {[%emt 0:28:44]} 10. Nf2 {[%emt 0:15:44]} Nc6 {[%emt 0:05:34]} 11. Qd2 {[%emt 0:22:26]} Qxc5 {[%emt 0:02:54]} 12. e4 {[%emt 0:02:00]} Nf6 {[%emt 0:01:16]} 13. a4 {[%emt 0:04:53]} fxe4 {[%emt 0:03:59]} 14. fxe4 {[%emt 0:02:40]} Bd7 {[%emt 0:07:44]} 15. Ba3 {[%emt 0:00:39]} Qe5 {[%emt 0:01:30]} 16. Be2 {[%emt 0:03:44]} O-O-O {[%emt 0:03:58]} 17. O-O {[%emt 0:00:08]} Be8 {[%emt 0:00:28]} 18. Qb2 {[%emt 0:02:56]} Bg6 {[%emt 0:01:21]} 19. Nd3 {[%emt 0:01:21]} Qc7 {[%emt 0:09:33]} 20. Nc5 {[%emt 0:00:57]} Rhe8 {[%emt 0:04:14]} 21. Bc4 {[%emt 0:02:55]} Qb6 {[%emt 0:06:42]} 22. Bxe6+ {[%emt 0:04:07]} Kb8 {[%emt 0:00:48]} 23. Qf2 {[%emt 0:00:05]} Nxe4 {[%emt 0:07:50]} 24. Nd7+ {[%emt 0:03:46]} Kc7 {[%emt 0:00:05]} 25. Nxb6 {[%emt 0:00:31]} Nxf2 {[%emt 0:00:07]} 26. Nd5+ {[%emt 0:00:39]} Kb8 {[%emt 0:00:09]} 27. Nf4 {[%emt 0:03:24]} Nd3 {[%emt 0:00:26]} 28. Bc4 {[%emt 0:00:11]} Nxf4 {[%emt 0:01:23]} 29. Rxf4 {[%emt 0:00:02]} Re4 {[%emt 0:00:39]} 30. Rxe4 {[%emt 0:00:29]} Bxe4 {[%emt 0:00:08]} 31. Re1 {[%emt 0:01:48]} Bc2 {[%emt 0:01:36]} 32. Bb5 {[%emt 0:01:22]} 1/2-1/2

[Event "Najdorf Memorial-A 2022"]
[Site "Warsaw"]
[Date "2022.07.13"]
[Round "5.2"]
[White "Sriram, Jha"]
[Black "Stachecki, Mikolaj"]
[Result "1-0"]
[ECO "D58"]
[WhiteElo "2361"]
[BlackElo "1918"]
[Annotator "ChessBase"]
[PlyCount "73"]
[EventDate "2022.07.09"]
[EventType "swiss"]
[EventCountry "POL"]
[SourceTitle "playchess.com"]
[Source "ChessBase"]
[SourceQuality "1"]
[TimeControl "40/5400+30:1800+30"]

1. d4 {[%emt 0:00:18]} d5 {[%emt 0:00:22]} 2. c4 {[%emt 0:00:37]} e6 {[%emt 0:00:15]} 3. Nf3 {[%emt 0:01:02]} Nf6 {[%emt 0:00:29]} 4. Bg5 {[%emt 0:00:17]} Be7 {[%emt 0:00:53]} 5. Nc3 {[%emt 0:00:47]} h6 {[%emt 0:01:26]} 6. Bh4 {[%emt 0:02:58]} O-O {[%emt 0:00:38]} 7. e3 {[%emt 0:00:16]} b6 {[%emt 0:02:06]} 8. Be2 {[%emt 0:02:17]} Bb7 {[%emt 0:01:24]} 9. O-O {[%emt 0:08:53]} Nbd7 {[%emt 0:10:55]} 10. Rc1 {[%emt 0:05:19]} dxc4 {[%emt 0:06:30]} 11. Bxc4 {[%emt 0:00:50]} c5 {[%emt 0:00:51]} 12. Qe2 {[%emt 0:03:44]} Ne4 {[%emt 0:22:04]} 13. Bxe7 {[%emt 0:14:59]} Qxe7 {[%emt 0:24:13]} 14. Ba6 {[%emt 0:11:02]} Ndf6 {[%emt 0:04:21]} 15. Bxb7 {[%emt 0:03:35]} Qxb7 {[%emt 0:00:11]} 16. dxc5 {[%emt 0:00:15]} Nxc3 {[%emt 0:04:57]} 17. Rxc3 {[%emt 0:00:36]} Ne4 {[%emt 0:00:07]} 18. Rc4 {[%emt 0:02:34]} Nxc5 {[%emt 0:01:22]} 19. b4 {[%emt 0:00:36]} Nd7 {[%emt 0:01:32]} 20. Rfc1 {[%emt 0:04:23]} Rac8 {[%emt 0:01:01]} 21. h3 {[%emt 0:00:15]} Nf6 {[%emt 0:03:38]} 22. Nd4 {[%emt 0:01:14]} Ne4 {[%emt 0:02:28]} 23. Nc6 {[%emt 0:15:39]} Nc5 {[%emt 0:01:57]} 24. Nd4 {[%emt 0:04:48]} Ne4 {[%emt 0:00:11]} 25. Qc2 {[%emt 0:01:28]} Rxc4 {[%emt 0:02:03]} 26. Qxc4 {[%emt 0:00:03]} Nf6 {[%emt 0:01:38]} 27. Nc6 {[%emt 0:03:06]} Kh8 {[%emt 0:02:10]} 28. Ne5 {[%emt 0:02:14]} Kg8 {[%emt 0:00:24]} 29. a4 {[%emt 0:02:01]} Qb8 {[%emt 0:02:31]} 30. Qc7 {[%emt 0:00:59]} Qa8 {[%emt 0:01:51]} 31. Nc6 {[%emt 0:00:46]} Nd5 {[%emt 0:00:20]} 32. Qd7 {[%emt 0:01:20]} Rc8 {[%emt 0:00:58]} 33. e4 {[%emt 0:00:27]} Rc7 {[%emt 0:00:36]} 34. Ne7+ {[%emt 0:03:42]} Kh7 {[%emt 0:00:34]} 35. Rxc7 {[%emt 0:00:04]} Nxc7 {[%emt 0:00:06]} 36. Qxc7 {[%emt 0:00:08]} Qxe4 {[%emt 0:00:05]} 37. Qb8 {[%emt 0:00:39]} 1-0

[Event "Najdorf Memorial-A 2022"]
[Site "Warsaw"]
[Date "2022.07.13"]
[Round "5.3"]
[White "Sarkar, Justin"]
[Black "Chomczyk, Marek"]
[Result "1-0"]
[ECO "E95"]
[WhiteElo "2346"]
[BlackElo "2290"]
[Annotator "ChessBase"]
[PlyCount "55"]
[EventDate "2022.07.09"]
[EventType "swiss"]
[EventCountry "POL"]
[SourceTitle "playchess.com"]
[Source "ChessBase"]
[SourceQuality "1"]
[TimeControl "40/5400+30:1800+30"]

1. d4 {[%emt 0:00:11]} Nf6 {[%emt 0:00:10]} 2. c4 {[%emt 0:00:29]} g6 {[%emt 0:00:23]} 3. Nc3 {[%emt 0:00:44]} Bg7 {[%emt 0:00:11]} 4. e4 {[%emt 0:00:10]} d6 {[%emt 0:00:05]} 5. Be2 {[%emt 0:01:15]} O-O {[%emt 0:01:03]} 6. Nf3 {[%emt 0:02:04]} e5 {[%emt 0:00:36]} 7. O-O {[%emt 0:00:52]} Nbd7 {[%emt 0:01:42]} 8. Re1 {[%emt 0:02:55]} Re8 {[%emt 0:00:18]} 9. Bf1 {[%emt 0:00:53]} c6 {[%emt 0:04:56]} 10. Rb1 {[%emt 0:06:15]} exd4 {[%emt 0:10:40]} 11. Nxd4 {[%emt 0:00:08]} Nc5 {[%emt 0:09:22]} 12. f3 {[%emt 0:00:12]} d5 {[%emt 0:02:33]} 13. e5 {[%emt 0:05:01]} Nfd7 {[%emt 0:04:30]} 14. b4 {[%emt 0:04:51]} Rxe5 {[%emt 0:41:34]} 15. Rxe5 {[%emt 0:01:18]} Nxe5 {[%emt 0:00:42]} 16. bxc5 {[%emt 0:01:15]} dxc4 {[%emt 0:00:29]} 17. Ne4 {[%emt 0:10:01]} Nd3 {[%emt 0:06:36]} 18. Nc2 {[%emt 0:00:45]} Bf5 {[%emt 0:06:44]} 19. Be3 {[%emt 0:24:44]} Bxe4 {[%emt 0:03:31]} 20. fxe4 {[%emt 0:00:07]} Qe7 {[%emt 0:01:57]} 21. Bxd3 {[%emt 0:00:17]} Rd8 {[%emt 0:00:07]} 22. Bxc4 {[%emt 0:00:19]} Rxd1+ {[%emt 0:00:07]} 23. Rxd1 {[%emt 0:00:03]} Be5 {[%emt 0:01:54]} 24. g3 {[%emt 0:06:52]} Kg7 {[%emt 0:00:40]} 25. Rf1 {[%emt 0:06:15]} f6 {[%emt 0:00:03]} 26. Nd4 {[%emt 0:01:20]} h5 {[%emt 0:00:22]} 27. Ne6+ {[%emt 0:00:20]} Kh7 {[%emt 0:00:05]} 28. Rd1 {[%emt 0:00:27]} 1-0

[Event "Najdorf Memorial-A 2022"]
[Site "Warsaw"]
[Date "2022.07.13"]
[Round "5.3"]
[White "Podgorski, Maciej"]
[Black "Starosciak, Szymon"]
[Result "1-0"]
[ECO "B30"]
[WhiteElo "1967"]
[BlackElo "1901"]
[Annotator "ChessBase"]
[PlyCount "83"]
[EventDate "2022.07.09"]
[EventType "swiss"]
[EventCountry "POL"]
[SourceTitle "playchess.com"]
[Source "ChessBase"]
[SourceQuality "1"]
[TimeControl "40/5400+30:1800+30"]

1. e4 c5 2. Nf3 Nc6 3. Bb5 e5 4. O-O Bd6 5. c3 a6 6. Bc4 Nf6 7. d4 cxd4 8. cxd4 exd4 9. e5 Bxe5 10. Nxe5 Nxe5 11. Re1 O-O 12. Rxe5 Qc7 13. Rf5 Qxc4 14. Rxf6 gxf6 15. Bh6 d6 16. Na3 Qd5 17. Bxf8 Kxf8 18. Nc2 d3 19. Nb4 Qd4 20. Nxd3 Bf5 21. Ne1 Qxd1 22. Rxd1 Ke7 23. Nf3 Kd7 24. Nd4 Be6 25. a3 Rc8 26. f4 f5 27. Kf2 Bd5 28. Nxf5 Rc2+ 29. Ke3 Be6 30. Nxd6 Kc6 31. f5 Bd5 32. Nc8 Bxg2 33. Ne7+ Kc5 34. b4+ Kc4 35. Rd6 Kb3 36. Rf6 Kxa3 37. Rxf7 Kxb4 38. Rxh7 Rc3+ 39. Kf2 Be4 40. Rh4 Kb3 41. Rxe4 Rh3 42. Re3+ 1-0

[Event "Najdorf Memorial-A 2022"]
[Site "Warsaw"]
[Date "2022.07.13"]
[Round "5.4"]
[White "Golubka, Petro"]
[Black "Musial, Tomasz"]
[Result "0-1"]
[ECO "A40"]
[WhiteElo "2378"]
[BlackElo "2131"]
[Annotator "ChessBase"]
[PlyCount "178"]
[EventDate "2022.07.09"]
[EventType "swiss"]
[EventCountry "POL"]
[SourceTitle "playchess.com"]
[Source "ChessBase"]
[SourceQuality "1"]
[TimeControl "40/5400+30:1800+30"]

1. d4 {[%emt 0:03:11]} e6 {[%emt 0:00:16]} 2. c4 {[%emt 0:00:05]} b6 {[%emt 0:00:14]} 3. a3 {[%emt 0:00:13]} Nf6 {[%emt 0:00:57]} 4. Nc3 {[%emt 0:00:06]} Bb7 {[%emt 0:00:07]} 5. f3 {[%emt 0:01:10]} d5 {[%emt 0:01:56]} 6. cxd5 {[%emt 0:00:05]} exd5 {[%emt 0:02:02]} 7. e3 {[%emt 0:00:38]} Be7 {[%emt 0:04:28]} 8. Bd3 {[%emt 0:00:21]} O-O {[%emt 0:00:16]} 9. Nge2 {[%emt 0:00:02]} c5 {[%emt 0:02:23]} 10. O-O {[%emt 0:00:12]} Nc6 {[%emt 0:07:02]} 11. Bd2 {[%emt 0:00:11]} Re8 {[%emt 0:01:36]} 12. Be1 {[%emt 0:00:12]} Bd6 {[%emt 0:06:06]} 13. Bf2 {[%emt 0:00:42]} Rc8 {[%emt 0:03:06]} 14. Bf5 {[%emt 0:00:17]} Rb8 {[%emt 0:05:27]} 15. Nb5 {[%emt 0:03:12]} Ba6 {[%emt 0:04:12]} 16. Nec3 {[%emt 0:04:00]} Bf8 {[%emt 0:13:32]} 17. a4 {[%emt 0:01:19]} Bc8 {[%emt 0:02:37]} 18. Bxc8 {[%emt 0:00:25]} Rxc8 {[%emt 0:00:37]} 19. Ne2 {[%emt 0:02:02]} a6 {[%emt 0:02:56]} 20. Na3 {[%emt 0:04:53]} cxd4 {[%emt 0:03:44]} 21. Nxd4 {[%emt 0:00:15]} Nxd4 {[%emt 0:00:33]} 22. Qxd4 {[%emt 0:00:22]} Bc5 {[%emt 0:01:53]} 23. Qd3 {[%emt 0:00:08]} Qe7 {[%emt 0:02:39]} 24. Nc2 {[%emt 0:01:31]} a5 {[%emt 0:04:39]} 25. Rfd1 {[%emt 0:03:31]} Qe5 {[%emt 0:02:22]} 26. Rab1 {[%emt 0:00:26]} Bd6 {[%emt 0:04:07]} 27. Bg3 {[%emt 0:08:19]} Qe7 {[%emt 0:00:15]} 28. Bf2 {[%emt 0:00:34]} Bxh2+ {[%emt 0:05:02]} 29. Kxh2 {[%emt 0:00:44]} Qc7+ {[%emt 0:00:05]} 30. Kg1 {[%emt 0:03:02]} Qxc2 {[%emt 0:00:09]} 31. Qb5 {[%emt 0:01:42]} Qc6 {[%emt 0:01:46]} 32. Qb3 {[%emt 0:00:14]} Qe6 {[%emt 0:01:28]} 33. Rbc1 {[%emt 0:00:59]} Rc6 {[%emt 0:03:22]} 34. Qb5 {[%emt 0:01:03]} Rec8 {[%emt 0:01:24]} 35. Rxc6 {[%emt 0:00:12]} Rxc6 {[%emt 0:02:41]} 36. b4 {[%emt 0:02:27]} axb4 {[%emt 0:00:51]} 37. Qxb4 {[%emt 0:00:06]} h6 {[%emt 0:01:53]} 38. a5 {[%emt 0:01:03]} bxa5 {[%emt 0:01:15]} 39. Qxa5 {[%emt 0:00:08]} Rc2 {[%emt 0:01:05]} 40. Qa8+ {[%emt 0:00:00]} Kh7 {[%emt 0:00:00]} 41. Qa4 {[%emt 0:00:41]} Qc8 {[%emt 0:05:25]} 42. Qd4 {[%emt 0:00:54]} Qc4 {[%emt 0:02:29]} 43. Bh4 {[%emt 0:03:40]} Qxd4 {[%emt 0:07:43]} 44. Rxd4 {[%emt 0:00:09]} g5 {[%emt 0:00:27]} 45. Bg3 {[%emt 0:00:04]} Kg6 {[%emt 0:05:23]} 46. Be5 {[%emt 0:00:27]} Rc5 {[%emt 0:02:13]} 47. e4 {[%emt 0:03:08]} dxe4 {[%emt 0:00:31]} 48. Bxf6 {[%emt 0:00:06]} Kxf6 {[%emt 0:00:45]} 49. Rxe4 {[%emt 0:00:06]} h5 {[%emt 0:00:57]} 50. Kh2 {[%emt 0:00:19]} Rc3 {[%emt 0:02:06]} 51. Ra4 {[%emt 0:00:14]} Kg6 {[%emt 0:01:09]} 52. Ra6+ {[%emt 0:00:31]} f6 {[%emt 0:00:07]} 53. Rb6 {[%emt 0:00:14]} Rd3 {[%emt 0:00:26]} 54. Ra6 {[%emt 0:00:08]} g4 {[%emt 0:00:29]} 55. Ra8 {[%emt 0:06:22]} gxf3 {[%emt 0:00:21]} 56. gxf3 {[%emt 0:00:02]} Rxf3 {[%emt 0:00:11]} 57. Rg8+ {[%emt 0:00:20]} Kf5 {[%emt 0:00:39]} 58. Kg2 {[%emt 0:00:19]} Ra3 {[%emt 0:00:15]} 59. Rh8 {[%emt 0:00:20]} Kg4 {[%emt 0:00:32]} 60. Rg8+ {[%emt 0:00:04]} Kf4 {[%emt 0:00:45]} 61. Kh2 {[%emt 0:00:26]} f5 {[%emt 0:02:25]} 62. Rg7 {[%emt 0:01:38]} h4 {[%emt 0:01:53]} 63. Rg8 {[%emt 0:00:40]} Ke3 {[%emt 0:02:44]} 64. Re8+ {[%emt 0:00:55]} Kf3 {[%emt 0:00:41]} 65. Rh8 {[%emt 0:00:33]} Ra2+ {[%emt 0:01:31]} 66. Kh3 {[%emt 0:00:16]} Ra1 {[%emt 0:00:07]} 67. Kh2 {[%emt 0:00:03]} f4 {[%emt 0:02:06]} 68. Rb8 {[%emt 0:27:56]} Ra2+ {[%emt 0:02:31]} 69. Kh3 {[%emt 0:00:44]} Kf2 {[%emt 0:06:32]} 70. Rb3 {[%emt 0:09:35]} f3 {[%emt 0:00:24]} 71. Rb1 {[%emt 0:03:52]} Ke2 {[%emt 0:00:20]} 72. Rb8 {[%emt 0:00:32]} f2 {[%emt 0:00:36]} 73. Re8+ {[%emt 0:00:07]} Kf1 {[%emt 0:00:34]} 74. Kh2 {[%emt 0:00:05]} Re2 {[%emt 0:00:33]} 75. Ra8 {[%emt 0:00:02]} Rd2 {[%emt 0:00:31]} 76. Re8 {[%emt 0:00:18]} Re2 {[%emt 0:00:31]} 77. Ra8 {[%emt 0:00:23]} Ke1 {[%emt 0:00:34]} 78. Ra1+ {[%emt 0:00:07]} Kd2 {[%emt 0:00:04]} 79. Kg2 {[%emt 0:00:34]} h3+ {[%emt 0:00:24]} 80. Kf3 {[%emt 0:00:43]} h2 {[%emt 0:00:40]} 81. Rh1 {[%emt 0:00:07]} Kd3 {[%emt 0:00:25]} 82. Rd1+ {[%emt 0:00:37]} Rd2 {[%emt 0:00:06]} 83. Rh1 {[%emt 0:00:33]} Kc2 {[%emt 0:00:49]} 84. Rf1 {[%emt 0:00:23]} Kd3 {[%emt 0:00:49]} 85. Rh1 {[%emt 0:01:35]} Kc3 {[%emt 0:00:22]} 86. Rf1 {[%emt 0:03:32]} Rd8 {[%emt 0:00:35]} 87. Ke2 {[%emt 0:05:54]} Rf8 {[%emt 0:00:28]} 88. Rc1+ {[%emt 0:00:08]} Kb2 {[%emt 0:00:15]} 89. Rf1 {[%emt 0:00:08]} Kc2 {[%emt 0:00:04]} 0-1